bitfinex/quotes_ETHUSD_20251019
["timestamp","ask_amount","ask_price","bid_price","bid_amount"]
[1760881686960,3.660428,3958.4,3957.3,2.583]
[1760881687139,2.52663752,3957.9,3957.3,0.002]
[1760881687339,3.95624,3958.2,3957.3,0.002]
[1760881687651,1.728,3958.4,3957.4,0.4617]
[1760881687854,4.2543238,3958.4,3957.3,0.002]
[1760881688056,4.35384276,3958.3,3957.3,2.52896763]
[1760881688355,0.0995,3958.2,3957.3,0.002]
[1760881688525,0.1472,3958.5,3957.3,2.52896557]
[1760881688724,2.52633867,3958.3,3957.4,2.52687818]
[1760881688954,1.728,3958.1,3957.3,0.002]
[1760881689161,2.52652771,3958.1,3957.3,0.002]
[1760881689462,2.62604776,3958.0,3957.3,0.002]
[1760881689648,4.2546145,3957.9,3957.3,0.002]
[1760881690154,1.728,3957.9,3957.3,0.002]
[1760881690528,2.52660102,3957.9,3957.3,0.002]
[1760881690724,1.728,3957.7,3957.3,0.002]
[1760881690962,0.1472,3958.5,3957.3,0.002]
[1760881690963,4.2549116,3957.4,3957.3,0.002]
[1760881691164,27.5354636,3957.4,3957.3,0.002]
[1760881691364,21.4633336,3957.4,3957.3,0.002]
[1760881691577,34.3544116,3957.4,3957.3,0.002]
[1760881692130,31.8722826,3957.4,3957.3,0.002]
[1760881692333,32.5058826,3957.4,3957.3,0.002]
[1760881692533,4.3544116,3957.4,3957.3,0.002]
[1760881692762,11.6868536,3957.4,3957.3,0.002]
[1760881692934,6.8300216,3957.4,3957.3,0.002]
[1760881693130,9.4120216,3957.4,3957.3,0.002]
[1760881693537,10.0456216,3957.4,3957.3,0.002]
[1760881693738,37.5527206,3957.4,3957.3,0.002]
[1760881694763,37.5700116,3957.4,3957.3,0.002]
[1760881695332,36.5280586,3957.4,3957.3,0.002]
[1760881695555,32.4916426,3957.4,3957.3,0.002]
[1760881695754,37.5700116,3957.4,3957.3,0.002]
[1760881696080,37.61404667,3957.4,3957.3,0.002]
[1760881696450,37.5700116,3957.4,3957.3,0.002]
[1760881696740,7.5700116,3957.4,3957.3,0.002]
[1760881696940,15.29879329,3956.4,3956.3,0.002]
[1760881697178,8.95429129,3956.4,3956.3,0.002]
[1760881697891,15.52899529,3956.4,3956.3,0.002]
[1760881698197,12.94581029,3956.4,3956.3,0.002]
[1760881698878,18.66626229,3956.4,3956.3,0.002]
[1760881699058,17.42876229,3956.4,3956.3,0.002]
[1760881699586,18.06236229,3956.4,3956.3,0.002]
[1760881699754,13.21190729,3956.4,3956.3,0.002]
[1760881699960,33.66608829,3956.4,3956.3,0.002]
[1760881700272,20.21760129,3956.4,3956.3,0.002]
[1760881700582,11.48676229,3956.4,3956.3,0.002]
[1760881700982,14.64954,3956.4,3956.3,0.002]
[1760881701186,4.31,3956.4,3956.3,0.002]
[1760881701368,4.25555029,3956.4,3956.3,0.002]
[1760881701680,9.42902829,3956.4,3956.3,0.002]
[1760881701893,9.53307529,3956.4,3956.3,0.002]
[1760881702055,4.31,3956.4,3956.3,0.002]
[1760881702378,6.83755029,3956.4,3956.3,0.002]
[1760881702582,9.33523429,3956.4,3956.3,0.002]
[1760881702984,2.582,3956.4,3956.3,0.002]
[1760881703204,9.223669,3956.4,3956.3,0.002]
[1760881703403,11.75121929,3956.4,3956.3,0.002]
[1760881703605,11.85221929,3956.4,3956.3,0.002]
[1760881704304,20.76933729,3956.4,3956.3,0.002]
[1760881704468,16.50191429,3956.4,3956.3,0.002]
[1760881704667,12.15274829,3956.4,3956.3,0.002]
[1760881705299,19.67578929,3956.4,3956.3,0.002]
[1760881705570,20.30938929,3956.4,3956.3,0.002]
[1760881705986,17.680839,3956.4,3956.3,0.002]
[1760881706183,6.81044,3956.4,3956.3,0.002]
[1760881706388,5.717639,3956.4,3956.3,0.002]
[1760881706590,10.28018429,3956.4,3956.3,0.002]
[1760881706943,9.89108629,3956.4,3956.3,0.002]
[1760881707095,4.781536,3956.4,3956.3,0.002]
[1760881707287,7.019341,3956.4,3956.3,0.002]
[1760881707487,6.567461,3956.4,3956.3,0.002]
[1760881707683,9.04839429,3956.4,3956.3,0.002]
[1760881708007,0.001,3956.9,3956.3,0.002]
[1760881708216,2.582,3956.6,3956.3,0.4418]
[1760881708419,2.582,3956.6,3956.4,0.4398]
[1760881708626,2.582,3956.6,3956.5,0.4398]
[1760881708822,0.001,3956.9,3956.5,0.4398]
[1760881709034,2.582,3956.8,3956.5,0.4398]
[1760881709587,2.582,3956.8,3956.6,0.4398]
[1760881709830,0.001,3956.9,3956.7,0.4398]
[1760881710037,30.0,3956.8,3956.3,0.002]
[1760881710535,30.0,3956.8,3956.4,0.4398]
[1760881710827,30.0,3956.8,3956.5,0.4398]
[1760881711125,30.0,3956.8,3956.6,0.4398]
[1760881711437,30.0,3956.8,3956.3,0.002]
[1760881711733,32.5272955,3956.8,3956.4,0.4398]
[1760881711936,0.001,3956.9,3956.4,0.4398]
[1760881712094,30.0,3956.8,3956.5,0.4398]
[1760881712438,30.0,3956.8,3956.6,0.4398]
[1760881712592,30.0,3956.8,3956.3,0.002]
[1760881712801,30.0,3956.8,3956.7,0.4398]
[1760881713298,30.0,3956.8,3956.3,0.002]
[1760881713505,2.52729478,3956.8,3956.3,0.002]
[1760881713699,0.1256,3956.8,3956.4,0.4398]
[1760881713904,0.1256,3956.8,3956.5,0.4398]
[1760881714140,0.1256,3956.8,3956.3,0.002]
[1760881714336,0.1256,3956.8,3956.4,0.4398]
[1760881714563,0.1256,3956.8,3956.6,2.52736435]
[1760881714733,0.1256,3956.8,3956.7,0.4398]
[1760881714939,30.1256,3956.8,3956.7,0.4398]
[1760881715684,0.001,3956.9,3956.8,2.52729478]
[1760881716164,0.001,3956.9,3956.8,2.96709478]
[1760881719056,0.001,3956.9,3956.8,3.60069478]
[1760881719257,0.001,3956.9,3956.8,5.33410107]
[1760881719462,0.001,3956.9,3956.8,5.32869478]
[1760881720485,0.001,3956.9,3956.8,7.91069478]
[1760881721743,0.001,3957.3,3956.8,7.91069478]
[1760881721946,0.001,3957.3,3957.2,5.10763932]
[1760881722351,0.00338348,3959.0,3957.6,3.1603839]
[1760881722584,0.00338348,3959.0,3957.6,7.4693839]
[1760881722984,0.00338348,3959.0,3957.6,7.9091839]
[1760881723861,0.00338348,3959.0,3958.9,2.52595417]
[1760881724052,0.00338348,3959.0,3958.9,5.10695417]
[1760881724252,0.00338348,3959.0,3958.9,5.54675417]
[1760881724866,0.00338348,3959.0,3958.9,6.18035417]
[1760881725956,1e-08,3959.0,3958.9,7.90835417]
[1760881727862,1e-08,3959.0,3958.9,5.74055417]
[1760881728098,1e-08,3959.0,3958.3,0.219]
[1760881728409,1e-08,3959.0,3958.9,2.96575417]
[1760881728603,1e-08,3959.0,3958.9,5.54775417]
[1760881728810,0.1484,3962.3,3960.2,2.52512499]
[1760881728974,0.0995,3960.6,3960.3,2.585]
[1760881729302,0.0995,3961.3,3960.2,2.585]
[1760881729471,0.0995,3960.9,3960.6,0.1256]
[1760881729856,0.1256,3961.2,3960.6,2.65046996]
[1760881730089,0.0995,3961.5,3960.6,2.65046996]
[1760881730682,0.2736,3961.3,3960.6,2.65046996]
[1760881730897,0.2736,3961.3,3960.6,2.52486996]
[1760881731098,0.099,3961.6,3960.6,2.65046996]
[1760881731407,0.1256,3961.7,3960.6,2.65046996]
[1760881731713,0.099,3961.5,3960.6,5.11086996]
[1760881732208,0.099,3961.6,3960.6,5.11086996]
[1760881732369,0.148,3962.0,3960.6,5.55066996]
[1760881732574,0.247,3962.0,3960.6,5.55066996]
[1760881733188,0.247,3962.0,3960.6,6.18426996]
[1760881733992,0.148,3962.0,3960.6,3.0258]
[1760881734194,0.099,3961.6,3960.6,5.11086996]
[1760881734412,0.099,3961.3,3960.6,2.586]
[1760881734637,0.148,3962.0,3960.6,5.11086996]
[1760881734794,0.148,3962.0,3960.6,5.55066996]
[1760881734795,0.099,3961.8,3960.6,5.55066996]
[1760881735927,2.52411865,3961.8,3960.6,5.55066996]
[1760881736149,0.148,3962.0,3960.6,2.586]
[1760881736315,0.1756,3960.9,3960.6,5.11086996]
[1760881736519,0.1756,3960.9,3960.6,2.586]
[1760881736711,0.1756,3960.9,3960.6,5.11086996]
[1760881736930,0.1756,3960.9,3960.2,2.584]
[1760881737135,0.1756,3960.9,3960.2,5.10911855]
[1760881737432,0.1048,3960.7,3960.2,5.10912486]
[1760881737605,0.1048,3960.7,3960.2,2.584]
[1760881738125,0.0998,3960.6,3959.8,2.52538006]
[1760881738328,0.0998,3960.6,3959.8,2.584]
[1760881738626,0.0998,3960.6,3959.8,5.1093757]
[1760881738808,0.005,3960.7,3960.0,2.52522677]
[1760881739315,0.005,3960.7,3960.4,2.52498805]
[1760881739525,0.005,3960.7,3960.4,2.52495009]
[1760881739897,0.005,3960.7,3960.5,0.4398]
[1760881740103,0.005,3960.7,3960.6,2.584]
[1760881740310,0.005,3960.7,3960.2,2.584]
[1760881740929,0.005,3960.7,3960.6,2.52486996]
[1760881741094,0.005,3960.7,3960.6,5.74246996]
[1760881741294,0.005,3960.7,3960.6,6.18226996]
[1760881741499,0.005,3960.7,3960.6,2.7096]
[1760881741748,0.006,3960.7,3960.6,5.23446996]
[1760881741921,0.006,3960.7,3960.6,5.67426996]
[1760881742733,0.006,3960.7,3960.6,6.30786996]
[1760881743813,0.006,3960.7,3960.6,5.67426996]
[1760881744415,0.006,3960.7,3960.6,5.23446996]
[1760881744816,0.006,3960.7,3960.6,5.67426996]
[1760881745011,0.006,3960.7,3960.6,5.10886996]
[1760881745536,0.006,3960.7,3960.6,5.55886996]
[1760881745733,0.006,3960.7,3960.6,7.92046996]
[1760881746310,0.006,3960.7,3960.6,5.33646996]
[1760881746535,0.2506,3963.1,3960.7,4.25277975]
[1760881746736,0.099,3962.9,3962.1,2.52385277]
[1760881746938,0.099,3962.9,3961.3,4.25237985]
[1760881746939,0.099,3962.9,3962.2,2.585]
[1760881747326,0.099,3962.9,3961.7,0.6336]
[1760881747327,0.1119,3962.8,3961.7,1.75324168]
[1760881747529,0.099,3962.7,3961.6,4.25222615]
[1760881747706,0.1119,3962.8,3961.3,2.76171468]
[1760881747707,0.099,3962.6,3961.3,2.76171468]
[1760881747903,0.099,3962.6,3960.5,2.52487156]
[1760881747904,0.1489,3961.4,3960.4,0.6873]
[1760881748109,0.1484,3961.7,3960.5,0.45]
[1760881748311,0.1484,3961.7,3961.0,2.52456241]
[1760881748503,0.1484,3961.7,3961.1,2.59]
[1760881748742,0.104,3963.1,3961.3,1.728]
[1760881749037,0.2109,3962.8,3962.0,2.52397635]
[1760881749237,0.2109,3962.8,3962.1,2.592]
[1760881749655,23.373695,3962.7,3960.8,0.45]
[1760881749809,1.728,3962.5,3960.7,2.52480277]
[1760881750008,0.099,3962.6,3960.5,0.45]
[1760881750009,23.36433,3962.3,3960.6,2.52486996]
[1760881750204,23.36433,3962.3,3960.5,0.45]
[1760881750205,26.369934,3962.1,3960.7,2.592]
[1760881750422,0.1119,3962.8,3960.8,3.042]
[1760881750423,0.099,3962.2,3960.8,3.042]
[1760881750618,0.099,3962.2,3961.1,2.52452654]
[1760881750918,0.099,3962.1,3961.2,2.596]
[1760881751120,0.1119,3962.8,3961.3,0.4444]
[1760881751443,0.1764,3964.0,3961.3,0.4444]
[1760881751444,2.52310076,3963.4,3961.5,2.52429635]
[1760881751644,0.099,3963.5,3961.5,2.52429635]
[1760881751845,2.52671788,3965.6,3961.3,2.1724]
[1760881751846,0.04397602,3964.5,3961.8,0.6336]
[1760881752097,0.1494,3965.2,3961.9,0.6336]
[1760881752098,0.1469,3963.6,3961.9,0.6336]
[1760881752211,0.1469,3963.6,3961.9,0.4444]
[1760881752414,0.1753,3964.2,3963.0,2.5233409]
[1760881752634,0.1753,3964.2,3963.0,5.5707409]
[1760881752909,0.1473,3963.8,3963.0,2.603]
[1760881753354,0.1473,3963.8,3962.9,2.52339289]
[1760881753542,0.1,3963.6,3962.1,0.4444]
[1760881753717,0.1,3963.6,3962.2,2.52379702]
[1760881753923,0.1,3963.3,3962.3,2.604]
[1760881754144,0.1473,3963.8,3962.5,2.52362646]
[1760881754476,3.62924,3962.3,3961.1,0.2273]
[1760881754623,2.52384869,3962.3,3961.1,0.2273]
[1760881754971,0.1117,3962.4,3961.2,0.773]
[1760881755119,0.1117,3962.4,3961.1,0.6717]
[1760881755324,2.52385038,3962.2,3961.1,0.2273]
[1760881755553,2.52385038,3962.2,3961.6,0.1256]
[1760881755757,2.52398427,3962.0,3961.7,2.609]
[1760881755960,0.248,3961.9,3961.6,0.1256]
[1760881756178,0.248,3961.9,3961.7,2.609]
[1760881756474,0.248,3961.9,3960.4,0.4444]
[1760881756475,0.2495,3961.8,3960.3,0.2273]
[1760881756627,2.65006729,3961.3,3960.6,0.1256]
[1760881756833,2.74906729,3961.3,3960.6,0.1256]
[1760881757030,2.52448839,3961.2,3960.6,0.1256]
[1760881757232,0.1746,3960.7,3959.9,0.2373]
[1760881757471,0.099,3961.3,3960.0,2.609]
[1760881757766,0.1505,3961.8,3960.8,2.52474137]
[1760881757767,0.2503,3961.8,3960.8,2.52474137]
[1760881757978,0.2503,3961.8,3960.9,5.13367607]
[1760881758344,0.1505,3961.8,3960.5,0.4444]
[1760881758543,0.1505,3961.8,3960.5,2.52488042]
[1760881758544,0.1005,3961.7,3960.5,2.52488042]
[1760881758744,0.1005,3961.7,3960.1,0.4444]
[1760881758745,9.24288,3961.6,3960.1,0.4444]
[1760881758958,7.786663,3961.6,3960.6,2.609]
[1760881759272,5.956573,3961.6,3960.6,2.609]
[1760881759470,5.956573,3961.6,3960.1,0.4444]
[1760881759687,0.1005,3961.5,3959.9,0.2373]
[1760881759834,0.1005,3961.7,3960.3,2.52506123]
[1760881760034,2.62468853,3961.7,3960.4,0.4444]
[1760881760270,0.1005,3961.6,3960.6,0.002]
[1760881760456,2.52451043,3961.2,3960.6,0.002]
[1760881760656,2.52439689,3961.4,3960.6,0.561]
[1760881760849,0.1005,3961.6,3960.6,0.561]
[1760881761168,2.52443618,3961.3,3960.6,0.561]
[1760881761380,2.52434814,3961.5,3960.6,0.561]
[1760881761576,6.350007,3961.1,3960.6,0.002]
[1760881761871,2.52461587,3961.0,3960.6,0.002]
[1760881762072,2.52468675,3960.9,3960.6,0.002]
[1760881762241,0.051,3960.9,3960.6,0.002]
[1760881762443,2.52456185,3961.1,3960.6,0.002]
[1760881762765,2.5243613,3961.4,3960.6,0.002]
[1760881763394,0.051,3961.3,3960.6,0.002]
[1760881763596,2.52480622,3960.7,3960.6,0.002]
[1760881763770,1.728,3961.9,3960.6,0.002]
[1760881763964,1.728,3961.4,3960.6,0.002]
[1760881764162,2.52442847,3961.3,3960.6,0.002]
[1760881764364,2.52480622,3960.7,3960.6,0.002]
[1760881764861,32.57580622,3960.7,3960.6,0.002]
[1760881765060,2.57580622,3960.7,3960.6,0.002]
[1760881765380,0.051,3960.7,3960.6,0.002]
[1760881765580,0.051,3961.4,3960.6,0.002]
[1760881765904,0.051,3961.0,3960.6,0.002]
[1760881766066,4.25210571,3961.8,3960.6,0.002]
[1760881766067,0.051,3961.3,3960.6,0.002]
[1760881766390,2.52456334,3961.1,3960.6,0.002]
[1760881766570,0.051,3961.3,3960.6,0.002]
[1760881766774,2.52461814,3961.0,3960.6,0.002]
[1760881767160,2.65021814,3961.0,3960.6,0.002]
[1760881767358,0.1256,3961.0,3960.6,0.002]
[1760881767593,1.728,3961.8,3960.6,0.1276]
[1760881767594,0.1256,3961.2,3960.6,0.1276]
[1760881767764,3.316151,3961.1,3960.6,0.1276]
[1760881767966,2.683937,3961.1,3960.6,0.1276]
[1760881768156,5.338179,3961.1,3960.6,0.1276]
[1760881768356,3.937179,3961.1,3960.6,0.1276]
[1760881768580,2.57556514,3961.1,3960.6,0.1276]
[1760881768780,2.52456514,3961.1,3960.6,0.1276]
[1760881768988,5.287602,3961.1,3960.6,0.1276]
[1760881769188,0.1256,3961.2,3960.6,0.1276]
[1760881769385,2.52435344,3961.5,3960.6,0.002]
[1760881769664,2.64995344,3961.5,3960.8,0.1256]
[1760881770102,0.1256,3961.5,3960.8,0.1256]
[1760881770993,2.64995748,3961.5,3960.8,0.1256]
[1760881771332,2.52452917,3961.2,3960.8,0.1256]
[1760881771521,2.65012917,3961.2,3960.6,0.1276]
[1760881771824,2.5245751,3961.1,3960.6,0.1276]
[1760881772530,2.65009097,3961.2,3960.6,0.1276]
[1760881773231,0.1256,3961.2,3960.6,0.1276]
[1760881773817,0.1256,3961.2,3960.6,2.65245953]
[1760881774325,0.1256,3961.2,3960.6,0.1276]
[1760881774499,3.846721,3961.7,3960.7,0.4444]
[1760881774695,0.1256,3961.6,3960.9,0.1256]
[1760881774930,0.1256,3961.6,3960.6,0.002]
[1760881774931,2.52360735,3962.6,3961.5,0.2159]
[1760881775110,2.52451082,3962.8,3961.5,0.687]
[1760881775111,0.001,3962.8,3961.5,0.687]
[1760881775315,6.118481,3962.7,3961.5,0.687]
[1760881775626,6.118481,3962.7,3961.8,2.52405236]
[1760881775795,2.121544,3962.7,3961.7,2.52415108]
[1760881776002,0.001,3962.8,3961.8,0.4711]
[1760881776321,0.001,3962.8,3962.0,2.52397443]
[1760881776519,0.001,3962.8,3961.8,0.4711]
[1760881776832,0.001,3962.8,3962.1,5.13590759]
[1760881777032,0.001,3962.8,3962.2,2.52385038]
[1760881777330,0.001,3962.8,3962.6,2.52358992]
[1760881777828,0.001,3962.8,3962.7,0.4711]
[1760881778235,0.001,3962.8,3962.5,2.52365529]
[1760881778439,0.001,3962.8,3962.6,2.99467043]
[1760881778640,0.001,3962.8,3962.7,2.52353193]
[1760881778821,0.001,3962.8,3962.7,0.4711]
[1760881779222,0.001,3962.8,3962.7,2.99463193]
[1760881780112,0.001,3962.8,3962.7,5.60563193]
[1760881780831,0.001,3962.8,3962.7,2.61]
[1760881781211,0.001,3962.8,3962.5,2.52365659]
[1760881781412,0.001,3962.8,3962.7,2.611]
[1760881781718,0.001,3962.8,3962.5,2.99475659]
[1760881781719,0.001,3962.8,3962.5,0.4711]
[1760881781934,0.001,3962.8,3962.2,0.2159]
[1760881782170,2.52452568,3962.8,3961.7,2.99526382]
[1760881782340,0.104,3962.8,3961.5,2.74014319]
[1760881782643,0.104,3962.8,3961.5,0.2159]
[1760881782845,0.104,3962.8,3961.6,2.61]
[1760881783068,2.52368485,3962.5,3961.6,5.13421553]
[1760881783423,2.6275003,3962.8,3961.6,2.61]
[1760881783424,2.52373519,3962.4,3961.6,2.61]
[1760881783624,2.52373519,3962.4,3961.5,2.74018359]
[1760881783840,2.52365414,3962.6,3961.5,2.74018359]
[1760881784042,2.5237385,3962.4,3961.6,2.61]
[1760881784442,2.52365608,3962.6,3961.6,2.61]
[1760881784825,2.52365608,3962.6,3961.6,5.13422447]
[1760881785031,0.1256,3962.5,3961.8,0.1256]
[1760881785226,0.103,3962.4,3961.8,0.1256]
[1760881785441,0.103,3962.4,3960.4,0.4711]
[1760881785442,0.111,3961.9,3960.4,0.4711]
[1760881785630,2.64977179,3961.7,3961.0,0.1256]
[1760881785826,0.1256,3961.7,3961.3,2.52440713]
[1760881786147,0.1256,3962.1,3961.4,0.5967]
[1760881786825,0.1256,3962.1,3961.4,0.1256]
[1760881787157,0.1256,3962.1,3961.5,2.609]
[1760881787558,2.6495595,3962.1,3961.5,2.609]
[1760881788071,0.2287,3962.1,3961.4,0.1256]
[1760881788240,0.1108,3961.5,3960.7,0.4711]
[1760881788437,0.1108,3961.5,3961.1,0.1256]
[1760881788846,0.2288,3961.8,3961.1,0.3415]
[1760881788847,0.1256,3961.8,3961.1,0.3415]
[1760881789259,2.52385308,3962.2,3961.1,3.295]
[1760881789561,0.1256,3962.0,3961.3,0.1256]
[1760881790230,0.1151,3961.9,3961.3,0.1256]
[1760881790427,2.63914149,3961.9,3961.3,0.1256]
[1760881790659,0.1151,3961.9,3961.3,0.1256]
[1760881791479,2.52422542,3961.7,3961.0,2.607]
[1760881791647,2.64982542,3961.7,3961.0,2.7326]
[1760881791972,2.7221,3961.9,3960.6,0.002]
[1760881792142,2.6499628,3961.4,3960.7,0.1256]
[1760881792351,2.64996718,3961.4,3960.7,0.1256]
[1760881792544,2.64996689,3961.4,3960.7,0.1256]
[1760881792846,0.1256,3961.4,3960.7,0.1256]
[1760881793042,2.52448752,3961.2,3960.6,0.002]
[1760881793231,0.099,3961.3,3960.6,0.002]
[1760881793436,0.1256,3961.2,3960.6,0.002]
[1760881793640,2.5246151,3961.0,3960.6,0.002]
[1760881794284,0.1256,3961.2,3960.6,0.002]
[1760881794486,0.1256,3961.2,3960.7,0.4711]
[1760881794860,0.1256,3961.2,3960.6,0.002]
[1760881795245,2.65011001,3961.2,3960.6,0.002]
[1760881795447,2.52458452,3961.1,3960.6,0.002]
[1760881795771,2.65009666,3961.2,3960.6,0.002]
[1760881795961,0.1256,3961.2,3960.6,0.002]
[1760881796272,6.45406522,3960.7,3960.6,0.002]
[1760881796449,0.099,3961.1,3960.6,0.002]
[1760881796659,10.055752,3961.0,3960.6,0.002]
[1760881796848,8.98298,3960.9,3960.6,0.002]
[1760881797044,2.52474675,3960.8,3960.6,0.002]
[1760881797445,2.62380622,3960.7,3960.6,0.002]
[1760881797744,13.17665422,3960.7,3960.6,0.002]
[1760881797961,2.52474724,3960.8,3960.6,0.002]
[1760881798576,2.52480622,3960.7,3960.6,0.002]
[1760881799659,17.37541522,3960.7,3960.6,0.002]
[1760881799851,0.099,3960.7,3960.6,0.002]
[1760881800050,15.29327222,3960.7,3960.6,0.002]
[1760881800247,5.90393922,3960.7,3960.6,0.002]
[1760881800442,2.52480622,3960.7,3960.6,0.002]
[1760881801081,5.34869522,3960.7,3960.6,0.002]
[1760881801382,5.44769522,3960.7,3960.6,0.002]
[1760881801693,8.05469522,3960.7,3960.6,0.002]
[1760881802054,2.607,3960.7,3960.6,0.002]
[1760881802250,5.23080622,3960.7,3960.6,0.002]
[1760881802450,18.17273422,3960.7,3960.6,0.002]
[1760881803093,13.25769822,3960.7,3960.6,0.002]
[1760881803754,10.65069822,3960.7,3960.6,0.002]
[1760881804083,16.95256622,3960.7,3960.6,0.002]
[1760881804253,17.05156622,3960.7,3960.6,0.002]
[1760881804586,11.82198722,3960.7,3960.6,0.002]
[1760881804776,13.46981222,3960.7,3960.6,0.002]
[1760881805086,14.87932122,3960.7,3960.6,0.002]
[1760881805294,2.62362732,3961.0,3960.6,0.002]
[1760881805295,2.5246327,3961.0,3960.6,0.002]
[1760881805456,7.204536,3960.7,3960.6,0.002]
[1760881805851,4.598536,3960.7,3960.6,0.002]
[1760881806155,4.737974,3961.8,3960.6,0.002]
[1760881806353,2.52449897,3961.2,3960.6,0.002]
[1760881806584,2.605,3961.2,3960.6,0.002]
[1760881806784,9.507742,3961.1,3960.6,0.002]
[1760881806973,2.605,3961.2,3960.6,0.002]
[1760881807176,2.605,3961.2,3960.7,0.4746]
[1760881807487,2.605,3961.2,3960.6,0.002]
[1760881807685,5.12950911,3961.2,3960.6,0.002]
[1760881807886,2.605,3961.2,3960.6,0.002]
[1760881808100,1.728,3961.8,3960.6,0.002]
[1760881808284,2.52433884,3961.5,3960.6,0.002]
[1760881808493,4.943731,3961.5,3960.6,0.002]
[1760881808694,2.52430078,3961.5,3960.6,0.002]
[1760881808902,1.728,3961.6,3960.6,0.002]
[1760881809087,5.12938362,3961.4,3960.7,0.4746]
[1760881809400,2.605,3961.4,3960.7,0.4746]
[1760881809815,5.12938319,3961.4,3960.7,0.4746]
[1760881810573,2.52442876,3961.3,3960.7,0.4746]
[1760881811176,2.605,3961.4,3960.7,0.4746]
[1760881811582,2.605,3961.4,3960.6,0.002]
[1760881812018,18.974442,3961.3,3960.6,0.002]
[1760881812179,11.25011422,3960.7,3960.6,0.002]
[1760881812377,15.58311422,3960.7,3960.6,0.002]
[1760881812597,15.68211422,3960.7,3960.6,0.002]
[1760881812802,16.31571422,3960.7,3960.6,0.002]
[1760881813107,6.95680622,3960.7,3960.6,0.002]
[1760881813278,13.09758622,3960.7,3960.6,0.002]
[1760881813474,9.44934022,3960.7,3960.6,0.002]
[1760881813907,9.30072022,3960.7,3960.6,0.002]
[1760881814277,12.35976422,3960.7,3960.6,0.002]
[1760881814499,9.66854922,3960.7,3960.6,0.002]
[1760881814712,10.40114922,3960.7,3960.6,0.002]
[1760881815286,16.30961122,3960.7,3960.6,0.002]
[1760881815478,18.91461122,3960.7,3960.6,0.002]
[1760881815679,18.40899299,3960.2,3960.1,1e-08]
[1760881815892,16.81732199,3960.2,3960.1,1e-08]
[1760881816117,16.91632199,3960.2,3960.1,1e-08]
[1760881816615,16.91732199,3960.2,3960.1,1e-08]
[1760881816782,7.59272499,3960.2,3960.1,1e-08]
[1760881816979,19.86100499,3960.2,3960.1,1e-08]
[1760881817179,17.10146599,3960.2,3960.1,1e-08]
[1760881817381,11.18865399,3960.2,3960.1,1e-08]
[1760881817877,27.14265499,3960.2,3960.1,1e-08]
[1760881818921,7.59372499,3960.2,3960.1,1e-08]
[1760881819133,37.59372499,3960.2,3960.1,1e-08]
[1760881819283,37.89922282,3960.2,3960.1,1e-08]
[1760881819477,33.15923519,3959.4,3959.3,1e-08]
[1760881819730,37.49523519,3959.4,3959.3,1e-08]
[1760881819904,34.98673519,3959.4,3959.3,1e-08]
[1760881820184,30.43830519,3959.4,3959.3,1e-08]
[1760881820384,33.04730519,3959.4,3959.3,1e-08]
[1760881820581,33.04830519,3959.4,3959.3,1e-08]
[1760881820911,30.43830519,3959.4,3959.3,1e-08]
[1760881821114,35.03588119,3959.4,3959.3,1e-08]
[1760881821623,32.42688119,3959.4,3959.3,1e-08]
[1760881821822,35.03588119,3959.4,3959.3,1e-08]
[1760881822000,7.59573519,3959.4,3959.3,1e-08]
[1760881822312,37.49623519,3959.4,3959.3,1e-08]
[1760881822483,29.90283519,3959.4,3959.3,1e-08]
[1760881822880,27.29483519,3959.4,3959.3,1e-08]
[1760881823098,24.23824719,3959.4,3959.3,1e-08]
[1760881823307,23.59395819,3959.4,3959.3,1e-08]
[1760881823504,23.69345819,3959.4,3959.3,1e-08]
[1760881824096,37.59473519,3959.4,3959.3,1e-08]
[1760881824807,35.55749519,3959.4,3959.3,1e-08]
[1760881824991,20.85040819,3959.4,3959.3,1e-08]
[1760881825194,30.25929119,3959.4,3959.3,1e-08]
[1760881825388,26.54401719,3959.4,3959.3,1e-08]
[1760881825584,23.04206719,3959.4,3959.3,1e-08]
[1760881826212,20.66864719,3959.4,3959.3,1e-08]
[1760881826420,20.22722219,3959.4,3959.3,1e-08]
[1760881826614,17.08681919,3959.4,3959.3,1e-08]
[1760881827250,28.19876219,3959.4,3959.3,1e-08]
[1760881827385,25.35049519,3959.4,3959.3,1e-08]
[1760881828287,37.49723519,3959.4,3959.3,1e-08]
[1760881829224,31.728,3959.4,3959.3,1e-08]
[1760881829521,36.86263519,3959.4,3959.3,0.47500001]
[1760881829720,0.04401348,3959.7,3959.3,0.47500001]
[1760881829721,0.1468,3960.8,3959.3,0.47500001]
[1760881830033,0.099,3961.4,3959.3,0.47500001]
[1760881830034,2.52515094,3960.2,3959.3,0.47500001]
[1760881830332,2.2,3960.0,3959.3,0.47500001]
[1760881830503,2.609,3960.0,3959.3,0.47500001]
[1760881831030,5.13429999,3960.0,3959.3,0.47500001]
[1760881831844,2.609,3960.0,3959.3,0.47500001]
[1760881832354,2.52531629,3959.9,3959.3,0.47500001]
[1760881832500,2.52537059,3959.9,3959.3,0.47500001]
[1760881832946,5.13428308,3960.0,3959.3,0.47500001]
[1760881833109,2.608,3960.2,3959.3,0.47500001]
[1760881833299,27.655993,3960.1,3959.3,1e-08]
[1760881833510,20.147829,3960.0,3959.3,1e-08]
[1760881833715,1.728,3960.1,3959.3,1e-08]